[Event "Early-Titled-Tuesday-Blitz-January-30-2024"]
[Site "Chess.com"]
[Date "2024.01.30"]
[Round "3"]
[White "publicaccountcze"]
[Black "Caroexpert"]
[Result "0-1"]
[WhiteElo "2299"]
[BlackElo "2572"]
[TimeControl "180+1"]
[EndTime "8:29:47 PST"]
[Termination "Caroexpert won by resignation"]

1. e4 {[%clk 0:02:57.2]} 1... e5 {[%clk 0:02:57.6]} 2. Nf3 {[%clk 0:02:55.3]}
2... d6 {[%clk 0:02:57.3]} 3. d4 {[%clk 0:02:54.2]} 3... exd4 {[%clk 0:02:56.6]}
4. Nxd4 {[%clk 0:02:55.1]} 4... Nf6 {[%clk 0:02:54.7]} 5. Nc3 {[%clk 0:02:53.7]}
5... Nc6 {[%clk 0:02:54]} 6. Be3 {[%clk 0:02:50.9]} 6... Be7 {[%clk 0:02:47.5]}
7. Qd2 {[%clk 0:02:50.5]} 7... Ng4 {[%clk 0:02:47.7]} 8. O-O-O {[%clk
0:02:43.2]} 8... Nxe3 {[%clk 0:02:45.7]} 9. Qxe3 {[%clk 0:02:39.1]} 9... O-O
{[%clk 0:02:33.3]} 10. Kb1 {[%clk 0:02:35.8]} 10... Bf6 {[%clk 0:02:23.3]} 11.
Nxc6 {[%clk 0:02:25.5]} 11... bxc6 {[%clk 0:02:23.3]} 12. f4 {[%clk 0:02:21.4]}
12... Re8 {[%clk 0:02:21.1]} 13. e5 {[%clk 0:02:16.3]} 13... Qe7 {[%clk
0:02:17.4]} 14. Qf3 {[%clk 0:02:09.2]} 14... dxe5 {[%clk 0:02:15]} 15. fxe5
{[%clk 0:02:05.5]} 15... Qxe5 {[%clk 0:02:05]} 16. Qxc6 {[%clk 0:02:04.6]} 16...
Rb8 {[%clk 0:02:04]} 17. Bb5 {[%clk 0:01:42]} 17... Bg4 {[%clk 0:01:43.1]} 18.
Qxe8+ {[%clk 0:01:00]} 18... Rxe8 {[%clk 0:01:34.9]} 19. Bxe8 {[%clk 0:01:00.9]}
19... Qxe8 {[%clk 0:01:34.9]} 20. Rhe1 {[%clk 0:00:54.4]} 20... Qb8 {[%clk
0:01:30.4]} 21. Rd3 {[%clk 0:00:46.5]} 21... g6 {[%clk 0:01:20.5]} 22. b3 {[%clk
0:00:37]} 22... Qb4 {[%clk 0:01:13]} 23. Re8+ {[%clk 0:00:32]} 23... Kg7 {[%clk
0:01:11.9]} 24. Nd5 {[%clk 0:00:32]} 24... Qc5 {[%clk 0:00:55.6]} 25. Nxf6
{[%clk 0:00:28.2]} 25... Kxf6 {[%clk 0:00:54.8]} 26. Red8 {[%clk 0:00:18.8]}
26... Bf5 {[%clk 0:00:53]} 27. Rd2 {[%clk 0:00:17.2]} 27... Qg1+ {[%clk
0:00:48.1]} 28. Kb2 {[%clk 0:00:17.7]} 28... Qxh2 {[%clk 0:00:47]} 29. g4 {[%clk
0:00:18.4]} 29... Qe5+ {[%clk 0:00:44]} 30. R8d4 {[%clk 0:00:16.6]} 30... c5
{[%clk 0:00:43]} 31. gxf5 {[%clk 0:00:15.6]} 31... cxd4 {[%clk 0:00:43.5]} 32.
fxg6 {[%clk 0:00:16.3]} 32... hxg6 {[%clk 0:00:43.2]} 0-1

[Event "Early-Titled-Tuesday-Blitz-January-30-2024"]
[Site "Chess.com"]
[Date "2024.01.30"]
[Round "3"]
[White "N4700000"]
[Black "AnaKuchava"]
[Result "1-0"]
[WhiteElo "2425"]
[BlackElo "2204"]
[TimeControl "180+1"]
[EndTime "8:29:49 PST"]
[Termination "N4700000 won on time"]

1. e4 {[%clk 0:02:58.5]} 1... c5 {[%clk 0:02:58.8]} 2. Nf3 {[%clk 0:02:58.3]}
2... d6 {[%clk 0:02:57.6]} 3. Bb5+ {[%clk 0:02:57.3]} 3... Bd7 {[%clk
0:02:53.5]} 4. c4 {[%clk 0:02:55.7]} 4... Nc6 {[%clk 0:02:41.8]} 5. Nc3 {[%clk
0:02:53.2]} 5... g6 {[%clk 0:02:34]} 6. d4 {[%clk 0:02:52.1]} 6... cxd4 {[%clk
0:02:32.5]} 7. Nxd4 {[%clk 0:02:52.8]} 7... Bg7 {[%clk 0:02:30.6]} 8. Be3 {[%clk
0:02:53.2]} 8... Nf6 {[%clk 0:02:29.1]} 9. h3 {[%clk 0:02:52]} 9... Rc8 {[%clk
0:02:22.1]} 10. O-O {[%clk 0:02:48.3]} 10... O-O {[%clk 0:02:09.9]} 11. Bxc6
{[%clk 0:02:43.3]} 11... bxc6 {[%clk 0:02:07.7]} 12. c5 {[%clk 0:02:39.9]} 12...
d5 {[%clk 0:01:57.2]} 13. e5 {[%clk 0:02:36.9]} 13... Ne8 {[%clk 0:01:50.2]} 14.
f4 {[%clk 0:02:31.7]} 14... Nc7 {[%clk 0:01:37.2]} 15. Qa4 {[%clk 0:02:27.7]}
15... Ne6 {[%clk 0:01:18.4]} 16. Nxe6 {[%clk 0:02:22.7]} 16... Bxe6 {[%clk
0:01:04.8]} 17. Ne2 {[%clk 0:02:22.3]} 17... Qc7 {[%clk 0:00:42.4]} 18. Nd4
{[%clk 0:02:19.5]} 18... Bd7 {[%clk 0:00:42.7]} 19. Rae1 {[%clk 0:02:15.6]}
19... e6 {[%clk 0:00:28.5]} 20. Bf2 {[%clk 0:02:05.4]} 20... Rce8 {[%clk
0:00:22.3]} 21. Bh4 {[%clk 0:02:00.8]} 21... f6 {[%clk 0:00:18.2]} 22. exf6
{[%clk 0:01:58.5]} 22... Bxf6 {[%clk 0:00:19.1]} 23. Bxf6 {[%clk 0:01:58.1]}
23... Rxf6 {[%clk 0:00:20]} 24. Nb3 {[%clk 0:01:17.2]} 24... e5 {[%clk 0:00:18]}
25. fxe5 {[%clk 0:01:16.6]} 25... Rxf1+ {[%clk 0:00:18.2]} 26. Rxf1 {[%clk
0:01:14.9]} 26... Rxe5 {[%clk 0:00:15.3]} 27. Qf4 {[%clk 0:01:14.1]} 27... Bf5
{[%clk 0:00:12.3]} 28. g4 {[%clk 0:01:07.1]} 28... Re7 {[%clk 0:00:09.6]} 29.
Qxc7 {[%clk 0:01:05.4]} 29... Rxc7 {[%clk 0:00:10.5]} 30. gxf5 {[%clk
0:01:05.3]} 30... gxf5 {[%clk 0:00:10.1]} 31. Rxf5 {[%clk 0:01:04.6]} 31... Rg7+
{[%clk 0:00:10.8]} 32. Kf2 {[%clk 0:01:03.7]} 32... Rg6 {[%clk 0:00:09.6]} 33.
Nd4 {[%clk 0:01:02.6]} 33... Rh6 {[%clk 0:00:10]} 34. Kg3 {[%clk 0:00:59.7]}
34... a5 {[%clk 0:00:07.7]} 35. b3 {[%clk 0:00:58.4]} 35... Kg7 {[%clk
0:00:07.6]} 36. h4 {[%clk 0:00:57.6]} 36... Rg6+ {[%clk 0:00:03.6]} 37. Rg5
{[%clk 0:00:57]} 1-0

[Event "Early-Titled-Tuesday-Blitz-January-30-2024"]
[Site "Chess.com"]
[Date "2024.01.30"]
[Round "3"]
[White "Sanan_Sjugirov"]
[Black "SchmakAttack"]
[Result "1-0"]
[WhiteElo "3008"]
[BlackElo "2739"]
[TimeControl "180+1"]
[EndTime "8:29:51 PST"]
[Termination "Sanan_Sjugirov won by resignation"]

1. e4 {[%clk 0:03:00.9]} 1... e6 {[%clk 0:02:54.6]} 2. d4 {[%clk 0:03:00.5]}
2... d5 {[%clk 0:02:55]} 3. e5 {[%clk 0:03:01]} 3... c5 {[%clk 0:02:54.8]} 4. c3
{[%clk 0:03:01.6]} 4... Nc6 {[%clk 0:02:55.2]} 5. Nf3 {[%clk 0:03:02.2]} 5...
Qb6 {[%clk 0:02:55.7]} 6. a3 {[%clk 0:03:01.4]} 6... c4 {[%clk 0:02:55.4]} 7.
Nbd2 {[%clk 0:03:01.3]} 7... Na5 {[%clk 0:02:55.4]} 8. Be2 {[%clk 0:02:59.3]}
8... Bd7 {[%clk 0:02:55.1]} 9. Nf1 {[%clk 0:02:56.7]} 9... Nb3 {[%clk
0:02:53.3]} 10. Rb1 {[%clk 0:02:56.3]} 10... Nxc1 {[%clk 0:02:42.6]} 11. Qxc1
{[%clk 0:02:55.3]} 11... Ne7 {[%clk 0:02:41.4]} 12. Ng3 {[%clk 0:02:54.8]} 12...
Nc6 {[%clk 0:02:33.8]} 13. Bd1 {[%clk 0:02:49.9]} 13... Na5 {[%clk 0:02:32.5]}
14. Bc2 {[%clk 0:02:50]} 14... O-O-O {[%clk 0:02:19.7]} 15. O-O {[%clk
0:02:47.8]} 15... Be7 {[%clk 0:01:58.2]} 16. Ng5 {[%clk 0:02:43.5]} 16... Be8
{[%clk 0:01:55.8]} 17. Nxh7 {[%clk 0:02:22.2]} 17... f6 {[%clk 0:01:49.8]} 18.
exf6 {[%clk 0:02:21]} 18... gxf6 {[%clk 0:01:50.7]} 19. Qh6 {[%clk 0:02:20.4]}
19... Qc7 {[%clk 0:01:21.9]} 20. Rbe1 {[%clk 0:02:09.4]} 20... Bf7 {[%clk
0:00:41.1]} 21. Qg7 {[%clk 0:01:59.9]} 21... Bd6 {[%clk 0:00:40.9]} 22. Nxf6
{[%clk 0:01:39.4]} 22... Nb3 {[%clk 0:00:40.1]} 23. Re2 {[%clk 0:01:33.2]} 23...
b5 {[%clk 0:00:26.8]} 24. f4 {[%clk 0:01:00]} 24... Rhf8 {[%clk 0:00:17.9]} 25.
Qg4 {[%clk 0:00:46.9]} 25... Kb7 {[%clk 0:00:16.8]} 26. Nh7 {[%clk 0:00:38.3]}
26... Rg8 {[%clk 0:00:15.8]} 27. Ng5 {[%clk 0:00:39]} 27... Bg6 {[%clk
0:00:11.7]} 28. Bxg6 {[%clk 0:00:33.1]} 28... Rxg6 {[%clk 0:00:12.6]} 29. Rxe6
{[%clk 0:00:32.3]} 29... Rdg8 {[%clk 0:00:10.9]} 30. Rxg6 {[%clk 0:00:32]} 30...
Rxg6 {[%clk 0:00:11.8]} 31. Qf5 {[%clk 0:00:32.5]} 31... Rg8 {[%clk 0:00:11.7]}
32. Qxd5+ {[%clk 0:00:32.7]} 1-0

[Event "Early-Titled-Tuesday-Blitz-January-30-2024"]
[Site "Chess.com"]
[Date "2024.01.30"]
[Round "3"]
[White "Noki102"]
[Black "Boundless_Strike"]
[Result "1-0"]
[WhiteElo "2488"]
[BlackElo "2643"]
[TimeControl "180+1"]
[EndTime "8:29:51 PST"]
[Termination "Noki102 won by resignation"]

1. d4 {[%clk 0:03:00.9]} 1... e5 {[%clk 0:02:56.6]} 2. Nf3 {[%clk 0:03:01.8]}
2... d6 {[%clk 0:02:55.7]} 3. dxe5 {[%clk 0:03:01.3]} 3... Bg4 {[%clk
0:02:55.5]} 4. Bg5 {[%clk 0:02:53.8]} 4... Qd7 {[%clk 0:02:54.1]} 5. exd6 {[%clk
0:02:26.3]} 5... Bxd6 {[%clk 0:02:52.6]} 6. Nc3 {[%clk 0:02:02.5]} 6... f6
{[%clk 0:02:52.6]} 7. Bh4 {[%clk 0:01:55.9]} 7... Nc6 {[%clk 0:02:48.3]} 8. Bg3
{[%clk 0:01:47.6]} 8... O-O-O {[%clk 0:02:44.4]} 9. Bxd6 {[%clk 0:01:42.1]} 9...
Qe6 {[%clk 0:02:38.5]} 10. Qd5 {[%clk 0:01:29.1]} 10... Qxd5 {[%clk 0:01:32]}
11. Nxd5 {[%clk 0:01:27.2]} 11... Rxd6 {[%clk 0:01:32.1]} 12. Ne3 {[%clk
0:01:21.4]} 12... h5 {[%clk 0:01:12.6]} 13. Rd1 {[%clk 0:01:12]} 13... Rxd1+
{[%clk 0:01:11.2]} 14. Kxd1 {[%clk 0:01:10.3]} 14... Nge7 {[%clk 0:01:11.9]} 15.
c3 {[%clk 0:01:07.6]} 15... Rd8+ {[%clk 0:01:06.1]} 16. Kc2 {[%clk 0:01:05.7]}
16... Nf5 {[%clk 0:01:06.2]} 17. Nxg4 {[%clk 0:00:56.6]} 17... hxg4 {[%clk
0:01:05.9]} 18. Nd2 {[%clk 0:00:55.8]} 18... Ne5 {[%clk 0:00:21.4]} 19. g3
{[%clk 0:00:51]} 19... c6 {[%clk 0:00:18.3]} 20. Bg2 {[%clk 0:00:50.8]} 20...
Kc7 {[%clk 0:00:18.6]} 21. h3 {[%clk 0:00:44.2]} 21... gxh3 {[%clk 0:00:14.6]}
22. Rxh3 {[%clk 0:00:35]} 22... Rh8 {[%clk 0:00:15.2]} 23. Rxh8 {[%clk
0:00:33.8]} 23... Ng4 {[%clk 0:00:12.1]} 24. Ne4 {[%clk 0:00:32.7]} 24... Nfe3+
{[%clk 0:00:09.3]} 25. fxe3 {[%clk 0:00:31.6]} 25... Nxe3+ {[%clk 0:00:10.2]}
26. Kd3 {[%clk 0:00:30.5]} 26... Nxg2 {[%clk 0:00:11.1]} 27. Rh2 {[%clk
0:00:28.4]} 27... Ne1+ {[%clk 0:00:10.9]} 28. Kd2 {[%clk 0:00:28.5]} 1-0

[Event "Early-Titled-Tuesday-Blitz-January-30-2024"]
[Site "Chess.com"]
[Date "2024.01.30"]
[Round "3"]
[White "HansOnTwitch"]
[Black "DavidGavrilescu18"]
[Result "1-0"]
[WhiteElo "3205"]
[BlackElo "2814"]
[TimeControl "180+1"]
[EndTime "8:29:53 PST"]
[Termination "HansOnTwitch won by resignation"]

1. e4 {[%clk 0:03:00.9]} 1... c5 {[%clk 0:02:58.1]} 2. Nf3 {[%clk 0:03:01]} 2...
e6 {[%clk 0:02:57.3]} 3. d4 {[%clk 0:02:58.7]} 3... cxd4 {[%clk 0:02:57.3]} 4.
Nxd4 {[%clk 0:02:59.6]} 4... Nf6 {[%clk 0:02:57.6]} 5. Nd2 {[%clk 0:02:58.3]}
5... d5 {[%clk 0:02:52]} 6. e5 {[%clk 0:02:58.3]} 6... Nfd7 {[%clk 0:02:51.7]}
7. N2f3 {[%clk 0:02:59]} 7... Nc6 {[%clk 0:02:51.6]} 8. Bf4 {[%clk 0:02:59.6]}
8... Be7 {[%clk 0:02:45]} 9. Bb5 {[%clk 0:02:57.9]} 9... Nxd4 {[%clk 0:02:38.4]}
10. Nxd4 {[%clk 0:02:55.5]} 10... O-O {[%clk 0:02:38.3]} 11. O-O {[%clk
0:02:53.8]} 11... Qc7 {[%clk 0:02:34.1]} 12. Re1 {[%clk 0:02:53.5]} 12... Nc5
{[%clk 0:02:31]} 13. Qg4 {[%clk 0:02:49.6]} 13... g6 {[%clk 0:02:10.3]} 14. Bh6
{[%clk 0:02:44.3]} 14... Rd8 {[%clk 0:02:10.1]} 15. Qf4 {[%clk 0:02:39.4]} 15...
Bd7 {[%clk 0:02:03.7]} 16. Bf1 {[%clk 0:02:31.3]} 16... Rac8 {[%clk 0:01:59.4]}
17. h4 {[%clk 0:02:29.7]} 17... a5 {[%clk 0:01:36.5]} 18. c3 {[%clk 0:02:28.3]}
18... f5 {[%clk 0:01:27.1]} 19. h5 {[%clk 0:02:19.7]} 19... Kf7 {[%clk
0:01:23.7]} 20. Bg5 {[%clk 0:02:19.5]} 20... Bc6 {[%clk 0:01:16.3]} 21. f3
{[%clk 0:02:06.8]} 21... a4 {[%clk 0:01:12.2]} 22. b4 {[%clk 0:02:06.2]} 22...
axb3 {[%clk 0:01:11.9]} 23. axb3 {[%clk 0:02:07.1]} 23... b5 {[%clk 0:00:45.5]}
24. Kh1 {[%clk 0:01:57]} 24... Rg8 {[%clk 0:00:35.5]} 25. b4 {[%clk 0:01:56.5]}
25... Nd7 {[%clk 0:00:26]} 26. Bxe7 {[%clk 0:01:41.1]} 26... Kxe7 {[%clk
0:00:26.9]} 27. Qg5+ {[%clk 0:01:40.7]} 27... Kf7 {[%clk 0:00:25.7]} 28. Bxb5
{[%clk 0:01:41.1]} 28... Bxb5 {[%clk 0:00:12.6]} 29. Nxb5 {[%clk 0:01:42]} 29...
Qd8 {[%clk 0:00:13]} 30. Nd6+ {[%clk 0:01:42.1]} 30... Kf8 {[%clk 0:00:12.5]}
31. Qh6+ {[%clk 0:01:39.7]} 31... Rg7 {[%clk 0:00:12.9]} 32. hxg6 {[%clk
0:01:39]} 32... hxg6 {[%clk 0:00:10.2]} 33. Nxc8 {[%clk 0:01:36.6]} 33... Qxc8
{[%clk 0:00:11.1]} 34. Ra7 {[%clk 0:01:31.8]} 34... Kf7 {[%clk 0:00:11]} 35. Qe3
{[%clk 0:01:28.4]} 35... g5 {[%clk 0:00:10.1]} 36. Rea1 {[%clk 0:01:21.8]} 36...
Kg6 {[%clk 0:00:10.1]} 37. Kg1 {[%clk 0:01:21]} 37... Rh7 {[%clk 0:00:09.7]} 38.
R1a6 {[%clk 0:01:19.8]} 38... Qe8 {[%clk 0:00:06.1]} 39. Rd6 {[%clk 0:01:17.7]}
39... Nf8 {[%clk 0:00:05.7]} 40. Rxh7 {[%clk 0:01:16.6]} 40... Nxh7 {[%clk
0:00:06.6]} 41. Qb6 {[%clk 0:01:14.6]} 41... Nf8 {[%clk 0:00:07.2]} 42. b5
{[%clk 0:01:14.7]} 42... Qa8 {[%clk 0:00:07]} 43. Qa6 {[%clk 0:01:15.2]} 43...
Qe8 {[%clk 0:00:03.5]} 44. b6 {[%clk 0:01:12.6]} 44... Nd7 {[%clk 0:00:03.5]}
45. b7 {[%clk 0:01:12.3]} 45... Nc5 {[%clk 0:00:04]} 46. Qc6 {[%clk 0:01:12.1]}
46... Qxc6 {[%clk 0:00:02.7]} 47. Rxc6 {[%clk 0:01:13]} 47... Nxb7 {[%clk
0:00:03.2]} 48. Rxe6+ {[%clk 0:01:13.6]} 48... Kf7 {[%clk 0:00:03.8]} 1-0

[Event "Early-Titled-Tuesday-Blitz-January-30-2024"]
[Site "Chess.com"]
[Date "2024.01.30"]
[Round "3"]
[White "spaski2004"]
[Black "Lennis93"]
[Result "1-0"]
[WhiteElo "2974"]
[BlackElo "2732"]
[TimeControl "180+1"]
[EndTime "8:29:53 PST"]
[Termination "spaski2004 won by resignation"]

1. Nf3 {[%clk 0:03:00.9]} 1... d5 {[%clk 0:03:00]} 2. e3 {[%clk 0:03:01]} 2...
Nf6 {[%clk 0:03:00.5]} 3. b3 {[%clk 0:03:00]} 3... Bg4 {[%clk 0:02:59.9]} 4. c4
{[%clk 0:02:47.3]} 4... e6 {[%clk 0:02:59.1]} 5. Bb2 {[%clk 0:02:45.5]} 5...
Nbd7 {[%clk 0:02:58.7]} 6. Be2 {[%clk 0:02:46.1]} 6... Bd6 {[%clk 0:02:56.6]} 7.
Nc3 {[%clk 0:02:43.9]} 7... c6 {[%clk 0:02:55.8]} 8. h3 {[%clk 0:02:40.9]} 8...
Bxf3 {[%clk 0:02:41.5]} 9. Bxf3 {[%clk 0:02:41.8]} 9... Qe7 {[%clk 0:02:41.9]}
10. Qc2 {[%clk 0:02:30.9]} 10... Ba3 {[%clk 0:02:38.9]} 11. Bxa3 {[%clk
0:02:25.2]} 11... Qxa3 {[%clk 0:02:39.8]} 12. d4 {[%clk 0:02:25.7]} 12... O-O
{[%clk 0:02:36.3]} 13. O-O {[%clk 0:02:25.8]} 13... Rfd8 {[%clk 0:02:34]} 14. g4
{[%clk 0:02:12.3]} 14... Qe7 {[%clk 0:02:27.3]} 15. Bg2 {[%clk 0:02:12.6]} 15...
a6 {[%clk 0:02:17.6]} 16. f4 {[%clk 0:02:09.3]} 16... b5 {[%clk 0:02:13.8]} 17.
c5 {[%clk 0:02:05.8]} 17... b4 {[%clk 0:02:06.2]} 18. Ne2 {[%clk 0:02:05]} 18...
a5 {[%clk 0:01:48.7]} 19. g5 {[%clk 0:02:04]} 19... Ne8 {[%clk 0:01:48.6]} 20.
Ng3 {[%clk 0:02:01.3]} 20... f6 {[%clk 0:01:42.5]} 21. h4 {[%clk 0:01:59.2]}
21... f5 {[%clk 0:01:41.8]} 22. a3 {[%clk 0:01:40.9]} 22... Rdb8 {[%clk
0:01:36.7]} 23. axb4 {[%clk 0:01:40.9]} 23... Rxb4 {[%clk 0:01:36.4]} 24. Ra3
{[%clk 0:01:31.4]} 24... Qd8 {[%clk 0:01:18.4]} 25. Rfa1 {[%clk 0:01:30]} 25...
h6 {[%clk 0:00:43.5]} 26. Bf1 {[%clk 0:01:27.8]} 26... Nf8 {[%clk 0:00:34.3]}
27. Bd3 {[%clk 0:01:26]} 27... Ng6 {[%clk 0:00:34.1]} 28. Qh2 {[%clk 0:01:21.7]}
28... Nxf4 {[%clk 0:00:27.3]} 29. exf4 {[%clk 0:01:15]} 29... Rxd4 {[%clk
0:00:27.9]} 30. Qe2 {[%clk 0:01:11]} 30... Nc7 {[%clk 0:00:20.3]} 31. Rxa5
{[%clk 0:01:01.3]} 31... Rxa5 {[%clk 0:00:19.7]} 32. Rxa5 {[%clk 0:01:02.2]}
32... Rxf4 {[%clk 0:00:19.8]} 33. Qe5 {[%clk 0:00:57.2]} 33... Rxh4 {[%clk
0:00:16.9]} 34. Ra7 {[%clk 0:00:49.1]} 34... Qxg5 {[%clk 0:00:15]} 35. Rxc7
{[%clk 0:00:48.4]} 35... Rg4 {[%clk 0:00:15.2]} 36. Qxe6+ {[%clk 0:00:41.4]}
36... Kh8 {[%clk 0:00:10.2]} 37. Rc8+ {[%clk 0:00:40.8]} 37... Kh7 {[%clk
0:00:10.3]} 38. Bxf5+ {[%clk 0:00:40.5]} 1-0

[Event "Early-Titled-Tuesday-Blitz-January-30-2024"]
[Site "Chess.com"]
[Date "2024.01.30"]
[Round "3"]
[White "Sethu0025"]
[Black "Juicy_Fork"]
[Result "1-0"]
[WhiteElo "2854"]
[BlackElo "2439"]
[TimeControl "180+1"]
[EndTime "8:29:53 PST"]
[Termination "Sethu0025 won on time"]

1. b3 {[%clk 0:03:00.9]} 1... Nf6 {[%clk 0:02:59.2]} 2. Bb2 {[%clk 0:03:00.5]}
2... g6 {[%clk 0:02:58.2]} 3. Nf3 {[%clk 0:03:00.3]} 3... Bg7 {[%clk 0:02:58.2]}
4. c4 {[%clk 0:03:01.2]} 4... O-O {[%clk 0:02:57.8]} 5. g3 {[%clk 0:03:01]} 5...
c5 {[%clk 0:02:57]} 6. Bg2 {[%clk 0:03:01]} 6... Nc6 {[%clk 0:02:57.1]} 7. O-O
{[%clk 0:03:00.3]} 7... d5 {[%clk 0:02:56.4]} 8. cxd5 {[%clk 0:02:58.6]} 8...
Nxd5 {[%clk 0:02:56.6]} 9. Bxg7 {[%clk 0:02:58.3]} 9... Kxg7 {[%clk 0:02:57.5]}
10. d4 {[%clk 0:02:54.1]} 10... cxd4 {[%clk 0:02:38.7]} 11. Nxd4 {[%clk
0:02:53.8]} 11... Ndb4 {[%clk 0:02:28.2]} 12. Nxc6 {[%clk 0:02:43]} 12... Nxc6
{[%clk 0:02:26.6]} 13. Nc3 {[%clk 0:02:39.1]} 13... Bf5 {[%clk 0:02:20.2]} 14.
Bxc6 {[%clk 0:02:34.2]} 14... bxc6 {[%clk 0:02:19.5]} 15. Rc1 {[%clk 0:02:34.5]}
15... Qxd1 {[%clk 0:02:13.7]} 16. Rfxd1 {[%clk 0:02:34.4]} 16... Rfd8 {[%clk
0:02:14.6]} 17. f3 {[%clk 0:02:33.9]} 17... Rd6 {[%clk 0:02:00.7]} 18. Rxd6
{[%clk 0:02:28.2]} 18... exd6 {[%clk 0:02:00.8]} 19. Kf2 {[%clk 0:02:29.1]}
19... Rc8 {[%clk 0:01:43.3]} 20. g4 {[%clk 0:02:26.4]} 20... Be6 {[%clk
0:01:12.8]} 21. Ne4 {[%clk 0:02:26.1]} 21... d5 {[%clk 0:01:10.2]} 22. Nd6
{[%clk 0:02:26]} 22... Rd8 {[%clk 0:00:59.9]} 23. Rxc6 {[%clk 0:02:24.9]} 23...
d4 {[%clk 0:01:00.5]} 24. Ra6 {[%clk 0:02:21.7]} 24... Rd7 {[%clk 0:00:57.3]}
25. Ne4 {[%clk 0:02:20.5]} 25... Bd5 {[%clk 0:00:31.6]} 26. Nf6 {[%clk
0:02:16.1]} 26... Bb7 {[%clk 0:00:09.3]} 27. Nxd7 {[%clk 0:02:01.9]} 27... Bxa6
{[%clk 0:00:09.7]} 28. g5 {[%clk 0:01:54.9]} 28... Bb5 {[%clk 0:00:07.8]} 29.
Nf6 {[%clk 0:01:46]} 29... h6 {[%clk 0:00:08]} 30. h4 {[%clk 0:01:45.6]} 30...
hxg5 {[%clk 0:00:08.2]} 31. hxg5 {[%clk 0:01:46.5]} 31... Kf8 {[%clk 0:00:08.2]}
32. Nd5 {[%clk 0:01:40.6]} 32... Bc6 {[%clk 0:00:06.3]} 33. Nb4 {[%clk
0:01:39.1]} 33... Bb7 {[%clk 0:00:06.6]} 34. Nc2 {[%clk 0:01:38.1]} 34... d3
{[%clk 0:00:02.7]} 35. exd3 {[%clk 0:01:39]} 35... Ke7 {[%clk 0:00:02.9]} 36. f4
{[%clk 0:01:38.7]} 36... Kd6 {[%clk 0:00:03.8]} 37. Ke3 {[%clk 0:01:37.9]} 37...
a5 {[%clk 0:00:02.3]} 38. Nd4 {[%clk 0:01:36.4]} 38... Ba6 {[%clk 0:00:02.7]}
39. Nf3 {[%clk 0:01:34.8]} 39... Kd5 {[%clk 0:00:02.9]} 40. Ne5 {[%clk
0:01:34.5]} 40... Ke6 {[%clk 0:00:03.1]} 41. Nc6 {[%clk 0:01:34.7]} 41... a4
{[%clk 0:00:01.8]} 42. bxa4 {[%clk 0:01:33.6]} 42... Kf5 {[%clk 0:00:02.4]} 43.
a5 {[%clk 0:01:31.9]} 43... Bb5 {[%clk 0:00:01.1]} 44. Nb4 {[%clk 0:01:30]}
44... Kg4 {[%clk 0:00:02]} 45. a6 {[%clk 0:01:29.4]} 1-0

[Event "Early-Titled-Tuesday-Blitz-January-30-2024"]
[Site "Chess.com"]
[Date "2024.01.30"]
[Round "3"]
[White "deepfear"]
[Black "diamonds13"]
[Result "0-1"]
[WhiteElo "1937"]
[BlackElo "2352"]
[TimeControl "180+1"]
[EndTime "8:29:54 PST"]
[Termination "diamonds13 won on time"]

1. e4 {[%clk 0:02:59.8]} 1... c5 {[%clk 0:02:59.3]} 2. Nc3 {[%clk 0:02:59.3]}
2... Nc6 {[%clk 0:02:58.4]} 3. f4 {[%clk 0:02:58.1]} 3... g6 {[%clk 0:02:56.8]}
4. Nf3 {[%clk 0:02:57.3]} 4... Bg7 {[%clk 0:02:57.4]} 5. Bc4 {[%clk 0:02:57.1]}
5... e6 {[%clk 0:02:54.3]} 6. f5 {[%clk 0:02:52.2]} 6... gxf5 {[%clk 0:02:51.2]}
7. exf5 {[%clk 0:02:51.3]} 7... d5 {[%clk 0:02:48.3]} 8. Bb5 {[%clk 0:02:06.3]}
8... d4 {[%clk 0:02:45.7]} 9. Ne4 {[%clk 0:02:00.2]} 9... Qd5 {[%clk 0:02:41.1]}
10. d3 {[%clk 0:01:37.4]} 10... exf5 {[%clk 0:02:32.9]} 11. Bc4 {[%clk
0:01:35.6]} 11... Qd8 {[%clk 0:02:20.4]} 12. Neg5 {[%clk 0:01:06.8]} 12... Qe7+
{[%clk 0:02:12.9]} 13. Kf2 {[%clk 0:00:56.1]} 13... Be6 {[%clk 0:02:10.2]} 14.
Re1 {[%clk 0:00:50.6]} 14... Nd8 {[%clk 0:01:49.9]} 15. Nxe6 {[%clk 0:00:21.5]}
15... fxe6 {[%clk 0:01:49.4]} 16. Ng5 {[%clk 0:00:19.8]} 16... e5 {[%clk
0:01:16.5]} 17. Qh5+ {[%clk 0:00:16.7]} 17... Kf8 {[%clk 0:01:16.7]} 18. Nxh7+
{[%clk 0:00:12.4]} 18... Rxh7 {[%clk 0:01:16.8]} 19. Qxh7 {[%clk 0:00:12.6]}
19... Nh6 {[%clk 0:00:35.9]} 20. Bxh6 {[%clk 0:00:10.5]} 20... Qh4+ {[%clk
0:00:35.8]} 21. g3 {[%clk 0:00:09.8]} 21... Qxh2+ {[%clk 0:00:34.5]} 22. Kf3
{[%clk 0:00:05.1]} 22... Qh5+ {[%clk 0:00:34]} 23. Kg2 {[%clk 0:00:04.6]} 23...
Qxh6 {[%clk 0:00:33.6]} 24. Qxf5+ {[%clk 0:00:04.5]} 24... Ke7 {[%clk
0:00:32.5]} 25. Rxe5+ {[%clk 0:00:02.2]} 25... Bxe5 {[%clk 0:00:31.9]} 26. Qxe5+
{[%clk 0:00:02.6]} 26... Kd7 {[%clk 0:00:31.4]} 27. Qd5+ {[%clk 0:00:01.5]}
27... Qd6 {[%clk 0:00:30]} 28. Bb5+ {[%clk 0:00:01.3]} 28... Kc7 {[%clk
0:00:29.9]} 0-1